bitfinex-derivatives/quotes_SOLF0:USTF0_20241012
["timestamp","ask_amount","ask_price","bid_price","bid_amount"]
[1728724921164,3.55552,145.79,145.75,8.44]
[1728724921165,3.4308,145.78,145.75,8.44]
[1728724922066,3.55552,145.79,145.76,8.44]
[1728724923266,0.12502,145.79,145.75,11.8713]
[1728724924373,3.4306,145.78,145.75,11.8713]
[1728724927676,3.4306,145.78,145.75,8.44]
[1728724930473,3.4306,145.78,145.76,8.44]
[1728724931171,3.4309,145.77,145.76,8.44]
[1728724931776,3.4309,145.77,145.75,8.44]
[1728724933172,3.4309,145.77,145.76,8.44]
[1728724934379,3.4309,145.77,145.75,8.44]
[1728724936986,77.70186829,145.76,145.67,0.12502]
[1728724937184,8.44,145.68,145.67,0.12502]
[1728724937878,11.873,145.68,145.67,0.12502]
[1728724939679,3.433,145.68,145.67,0.12502]
[1728724939882,11.873,145.68,145.67,0.12502]
[1728724952598,3.433,145.68,145.67,0.12502]
[1728724952894,11.873,145.68,145.67,0.12502]
[1728724962703,3.433,145.68,145.67,0.12502]
[1728724962996,11.873,145.68,145.67,0.12502]
[1728724969301,3.433,145.68,145.67,0.12502]
[1728724969502,11.873,145.68,145.67,0.12502]
[1728724975211,3.433,145.68,145.67,0.12502]
[1728724982713,11.873,145.68,145.67,0.12502]
[1728724986908,11.8723,145.71,145.67,0.12502]
[1728724987301,8.44,145.71,145.67,0.12502]
[1728724988514,3.4326,145.7,145.67,3.55812]
[1728724989805,11.8727,145.7,145.67,0.12502]
[1728724990009,8.44,145.7,145.67,0.12502]
[1728724990915,3.4329,145.69,145.67,0.12502]
[1728724992714,3.433,145.68,145.67,0.12502]
[1728725005625,8.44,145.7,145.67,0.12502]
[1728725005626,3.4327,145.7,145.67,0.12502]
[1728725005927,8.44,145.71,145.67,0.12502]
[1728725006135,3.4326,145.7,145.67,0.12502]
[1728725006825,3.4328,145.69,145.67,0.12502]
[1728725021641,3.433,145.68,145.67,0.12502]
[1728725041551,3.4329,145.69,145.67,0.12502]
[1728725043246,3.433,145.68,145.67,0.12502]
[1728725045553,11.873,145.68,145.67,0.12502]
[1728725073283,3.433,145.68,145.67,0.12502]
[1728725073479,11.873,145.68,145.67,0.12502]
[1728725080988,3.433,145.68,145.67,0.12502]
[1728725081189,11.873,145.68,145.67,0.12502]
[1728725088690,3.433,145.68,145.67,0.12502]
[1728725088889,11.873,145.68,145.67,0.12502]
[1728725109104,8.44,145.68,145.62,2.6162]
[1728725109309,8.44,145.65,145.62,2.6162]
[1728725109612,8.44,145.63,145.62,2.6162]
[1728725111321,8.44,145.63,145.61,1.53992]
[1728725111613,8.44,145.62,145.61,1.53992]
[1728725112014,8.44,145.62,145.61,0.12502]
[1728725112821,11.8744,145.62,145.61,0.12502]
[1728725134640,8.44,145.62,145.56,7.6861]
[1728725134938,8.44,145.58,145.56,4.2505]
[1728725137040,8.44,145.58,145.56,7.6863]
[1728725138740,11.8751,145.59,145.56,7.6863]
[1728725146938,8.44,145.59,145.56,4.2505]
[1728725147139,8.44,145.6,145.58,3.4352]
[1728725147942,8.44,145.59,145.57,3.4355]
[1728725154441,11.8751,145.59,145.56,7.6862]
[1728725156644,3.4351,145.59,145.56,7.6862]
[1728725156845,11.8751,145.59,145.56,7.6862]
[1728725160754,8.44,145.59,145.56,3.4357]
[1728725160946,3.4354,145.58,145.56,3.4357]
[1728725163450,8.44,145.57,145.55,3.56092]
[1728725166155,8.44,145.57,145.55,0.12502]
[1728725166362,11.8753,145.59,145.56,3.4358]
[1728725168060,8.44,145.59,145.55,0.12502]
[1728725168759,8.44,145.59,145.57,3.4355]
[1728725172965,3.435,145.6,145.57,3.4355]
[1728725173163,8.44,145.59,145.57,3.4355]
[1728725177369,11.8751,145.59,145.57,3.4355]
[1728725180270,8.44,145.59,145.57,3.4355]
[1728725182676,3.435,145.6,145.57,3.4355]
[1728725186974,88.74084656,145.62,145.61,3.4346]
[1728725187169,97.18084656,145.62,145.56,8.44]
[1728725187373,8.44,145.61,145.56,8.44]
[1728725188478,8.44,145.61,145.58,3.4352]
[1728725188679,8.44,145.61,145.56,8.44]
[1728725189382,8.44,145.61,145.59,3.435]
[1728725196681,8.44,145.6,145.55,2.79362]
[1728725196884,8.44,145.58,145.55,2.79362]
[1728725198387,8.44,145.58,145.57,3.4354]
[1728725198788,11.875,145.6,145.57,3.4354]
[1728725199784,88.74084656,145.62,145.55,11.23362]
[1728725200091,8.44,145.61,145.58,3.4352]
[1728725201392,11.8747,145.61,145.58,3.4352]
[1728725203292,11.8747,145.61,145.55,11.23362]
[1728725203483,11.8747,145.61,145.57,3.4355]
[1728725205892,3.4351,145.59,145.56,3.4356]
[1728725206083,8.44,145.61,145.55,2.79362]
[1728725207094,8.44,145.6,145.55,2.79362]
[1728725207487,11.8749,145.6,145.57,3.4356]
[1728725209283,3.4349,145.6,145.57,3.4356]
[1728725209895,8.44,145.61,145.57,3.4356]
[1728725210087,11.8747,145.61,145.57,3.4356]
[1728725211997,8.44,145.61,145.58,3.4352]
[1728725213388,11.8747,145.61,145.58,3.4352]
[1728725217395,11.8747,145.61,145.59,3.4349]
[1728725217396,8.44,145.61,145.59,3.4349]
[1728725217693,97.18084656,145.62,145.55,11.23362]
[1728725217994,97.18084656,145.62,145.56,8.44]
[1728725218391,100.61524656,145.62,145.56,8.44]
[1728725218795,100.61524656,145.62,145.57,3.4354]
[1728725218996,100.61524656,145.62,145.56,8.44]
[1728725219794,100.61524656,145.62,145.59,3.435]
[1728725220799,8.44,145.61,145.58,3.4353]
[1728725223198,3.4347,145.61,145.58,3.4353]
[1728725223394,11.8747,145.61,145.58,3.4353]
[1728725226702,11.8747,145.61,145.57,3.4355]
[1728725228096,8.44,145.6,145.57,3.4355]
[1728725229602,3.4347,145.61,145.55,11.23362]
[1728725229802,8.44,145.6,145.58,3.4353]
[1728725233105,92.17524656,145.62,145.59,3.435]
[1728725233310,8.44,145.6,145.55,11.23362]
[1728725233620,8.44,145.6,145.56,3.4357]
[1728725233803,8.44,145.6,145.55,11.23362]
[1728725235405,8.44,145.6,145.57,3.4354]
[1728725236008,11.8749,145.6,145.57,3.4354]
[1728725237015,8.44,145.6,145.57,3.4354]
[1728725238511,8.44,145.6,145.58,3.4353]
[1728725252416,8.44,145.6,145.55,11.23362]
[1728725253420,8.44,145.6,145.58,3.4352]
[1728725257822,8.44,145.59,145.58,3.4352]
[1728725258620,8.44,145.59,145.57,3.4354]
[1728725272642,8.44,145.58,145.57,3.4354]
[1728725282349,8.44,145.58,145.55,0.12502]
[1728725282550,8.44,145.58,145.56,3.4358]
[1728725284346,8.44,145.58,145.57,3.4356]
[1728725284753,8.44,145.59,145.57,3.4356]
[1728725288952,8.44,145.59,145.55,0.12502]
[1728725288953,8.44,145.59,145.58,3.4353]
[1728725293862,8.44,145.61,145.56,8.44]
[1728725296559,8.44,145.61,145.58,3.4351]
[1728725300262,8.44,145.61,145.56,8.44]
[1728725300568,8.44,145.61,145.59,3.4351]
[1728725302366,8.44,145.6,145.55,2.90092]
[1728725302567,8.44,145.6,145.55,11.34092]
[1728725305468,8.44,145.6,145.58,3.4353]
[1728725320685,11.8748,145.61,145.58,3.4353]
[1728725321484,8.44,145.61,145.58,3.4353]
[1728725324189,8.44,145.61,145.59,3.4351]
[1728725331493,3.4345,145.62,145.59,3.4351]
[1728725331692,8.44,145.61,145.59,3.4351]
[1728725347706,11.8746,145.61,145.59,3.4351]
[1728725348405,11.8746,145.61,145.58,3.4352]
[1728725355908,3.4344,145.62,145.59,3.435]
[1728725359412,11.8744,145.62,145.59,3.435]
[1728725375121,3.4347,145.61,145.58,3.4352]
[1728725399944,3.4347,145.61,145.56,3.4356]
[1728725400135,3.4347,145.61,145.55,12.63382]
[1728725401447,3.4347,145.61,145.58,3.4352]
[1728725406054,8.44,145.62,145.55,12.63382]
[1728725406348,11.8745,145.62,145.59,3.4351]
[1728725414966,3.4345,145.62,145.59,3.4351]
[1728725415566,86.76747442,145.65,145.55,4.19382]
[1728725415764,30.74305957,145.72,145.55,4.19382]
[1728725415765,3.55842,145.67,145.64,8.44]
[1728725415967,8.56502,145.67,145.63,3.434]
[1728725416260,8.56502,145.67,145.6,8.44]
[1728725416261,0.12502,145.67,145.6,8.44]
[1728725416467,11.8738,145.65,145.61,3.4344]
[1728725416863,11.8738,145.65,145.6,8.44]
[1728725417061,11.8738,145.65,145.62,3.4343]
[1728725419971,8.44,145.65,145.62,3.4343]
[1728725421870,11.8735,145.66,145.62,3.4343]
[1728725423570,3.4335,145.66,145.63,3.4341]
[1728725442976,3.55822,145.67,145.65,11.8737]
[1728725443178,0.12502,145.67,145.65,11.8737]
[1728725444386,3.55822,145.67,145.65,11.8737]
[1728725445678,3.55822,145.67,145.65,3.4337]
[1728725452086,3.55822,145.67,145.64,3.4338]
[1728725453982,0.12502,145.67,145.66,11.8735]
[1728725454784,0.12502,145.67,145.66,15.29471143]
[1728725472399,0.12502,145.67,145.66,6.85471143]
[1728725476398,0.12502,145.67,145.66,3.42121143]
[1728725476600,0.12502,145.67,145.65,11.8735]
[1728725477204,0.12502,145.67,145.66,3.38114585]
[1728725481105,0.12502,145.67,145.65,11.8735]
[1728725481607,0.12502,145.67,145.65,15.31027148]
[1728725487816,0.12502,145.67,145.65,11.87677148]
[1728725488020,0.12502,145.67,145.66,3.4335]
[1728725509651,0.12502,145.67,145.65,3.4336]
[1728725513250,0.12502,145.67,145.64,3.50407163]
[1728725513449,11.99822,145.67,145.64,3.4338]
[1728725523660,0.12502,145.67,145.66,3.4335]
[1728725529064,0.12502,145.67,145.65,6.90484155]
[1728725537467,0.12502,145.67,145.65,3.4336]
[1728725537671,3.55822,145.67,145.65,3.4336]
[1728725538465,0.12502,145.67,145.65,3.4336]
[1728725558279,0.12502,145.67,145.66,8.44]
[1728725558476,0.12502,145.73,145.66,8.44]
[1728725558778,0.12502,145.73,145.65,65.08014948]
[1728725558779,0.12502,145.73,145.69,8.44]
[1728725558971,3.4323,145.71,145.69,8.44]
[1728725564384,3.4321,145.72,145.69,8.44]
[1728725567589,3.4321,145.72,145.69,11.8727]
[1728725568591,3.55692,145.73,145.69,11.8727]
[1728725571594,3.4321,145.72,145.69,11.8727]
[1728725577901,8.56502,145.73,145.69,8.44]
[1728725578102,11.99702,145.73,145.7,3.4324]
[1728725580600,3.4321,145.72,145.69,11.8726]
[1728725581507,3.4321,145.72,145.69,3.4326]
[1728725587813,3.4323,145.71,145.68,3.4329]
[1728725588007,8.44,145.71,145.65,65.08014948]
[1728725588310,8.44,145.71,145.66,8.44]
[1728725588499,11.8725,145.71,145.68,3.433]
[1728725589301,3.4328,145.69,145.66,3.4334]
[1728725589699,8.44,145.7,145.65,62.37524948]
[1728725589902,3.4333,145.67,145.62,8.44]
[1728725590108,11.8733,145.67,145.62,11.90962615]
[1728725590306,11.8733,145.67,145.62,8.44]
[1728725590510,11.8733,145.67,145.63,3.434]
[1728725591706,3.4335,145.66,145.63,3.434]
[1728725592207,3.4335,145.66,145.62,3.4342]
[1728725593204,11.8735,145.66,145.62,3.4342]
[1728725595307,3.4335,145.66,145.62,3.4342]
[1728725595615,3.4335,145.66,145.63,11.8741]
[1728725596209,11.8733,145.67,145.63,11.8741]
[1728725596807,3.4333,145.67,145.61,0.12502]
[1728725597010,3.4333,145.67,145.64,11.8739]
[1728725598114,3.4333,145.67,145.64,3.4339]
[1728725602516,11.8733,145.67,145.64,3.4339]
[1728725611030,8.44,145.67,145.63,8.44]
[1728725611625,3.4331,145.68,145.63,8.44]
[1728725611831,11.8731,145.68,145.63,8.44]
[1728725612032,11.8731,145.68,145.65,3.4335]
[1728725615028,8.44,145.67,145.65,3.4335]
[1728725620139,3.4331,145.68,145.65,3.4335]
[1728725628433,3.4331,145.68,145.62,3.37451843]
[1728725628636,3.4331,145.68,145.64,3.4338]
[1728725629842,97.13405761,145.69,145.64,3.4338]
[1728725630039,3.4333,145.67,145.64,3.4338]
[1728725631738,3.4335,145.66,145.63,3.4341]
[1728725643551,3.4337,145.65,145.62,6.94026455]
[1728725643744,3.4337,145.65,145.62,3.50606455]
[1728725645441,3.4337,145.65,145.63,3.4342]
[1728725649160,3.4335,145.66,145.63,3.4342]
[1728725654853,88.69405761,145.69,145.62,11.94606455]
[1728725655253,97.13405761,145.69,145.64,8.44]
[1728725655553,3.4332,145.68,145.64,11.8738]
[1728725656058,3.4332,145.68,145.64,15.26102654]
[1728725657147,3.4332,145.67,145.64,15.26102654]
[1728725657348,3.4332,145.67,145.64,3.4338]
[1728725665158,8.44,145.68,145.62,3.40382558]
[1728725665356,3.4337,145.66,145.63,3.4341]
[1728725665757,11.8737,145.66,145.63,3.4341]
[1728725668365,3.4337,145.65,145.62,6.83812558]
[1728725670567,11.8737,145.65,145.62,6.83812558]
[1728725671175,8.44,145.65,145.62,3.40382558]
[1728725672369,3.4341,145.64,145.62,3.40382558]
[1728725692586,3.4341,145.64,145.62,6.83822558]
[1728725693475,8.44,145.65,145.62,6.83822558]
[1728725693782,11.8738,145.65,145.62,6.83822558]
[1728725695480,3.4338,145.65,145.62,6.83822558]
[1728725698590,3.4335,145.66,145.63,3.434]
[1728725699283,11.8734,145.67,145.64,3.4339]
[1728725699485,8.44,145.67,145.62,3.40382558]
[1728725700491,3.4335,145.66,145.63,3.4341]
[1728725703489,8.44,145.66,145.62,3.40382558]
[1728725703686,3.4337,145.65,145.62,6.83812558]
[1728725713797,8.44,145.66,145.62,3.40382558]
[1728725713994,3.4341,145.64,145.62,3.40382558]
[1728725717905,91.71121926,145.65,145.62,6.83822558]
[1728725718104,91.71121926,145.65,145.62,15.27822558]
[1728725719207,88.27751926,145.65,145.63,3.4342]
[1728725719508,88.27751926,145.65,145.63,11.8742]
[1728725730206,88.27751926,145.65,145.63,8.44]
[1728725733316,91.71131926,145.65,145.63,8.44]
[1728725737425,88.27751926,145.65,145.63,8.44]
[1728725737721,8.44,145.68,145.64,3.4339]
[1728725738519,3.4334,145.67,145.64,3.4339]
[1728725741926,3.4334,145.67,145.64,11.8739]
[1728725743817,3.4334,145.67,145.64,3.4339]
[1728725744932,8.44,145.67,145.62,3.40382558]
[1728725745118,3.4336,145.66,145.63,3.4341]
[1728725745725,8.44,145.67,145.62,3.40382558]
[1728725746027,3.4338,145.65,145.62,6.83822558]
[1728725752036,3.4338,145.65,145.62,15.27822558]
[1728725754642,8.44,145.67,145.62,11.84382558]
[1728725754841,3.4336,145.66,145.63,3.4341]
[1728725766747,3.4332,145.67,145.64,3.4338]
[1728725767953,3.4331,145.68,145.65,3.4337]
[1728725773659,3.4331,145.68,145.63,8.44]
[1728725773863,3.4331,145.68,145.64,3.4338]
[1728725775864,94.37842349,145.69,145.64,3.4338]
[1728725776164,8.44,145.68,145.63,3.4341]
[1728725777549,3.4335,145.66,145.63,3.4341]
[1728725777863,8.44,145.68,145.63,3.4341]
[1728725778064,3.4334,145.67,145.63,3.4341]
[1728725778458,3.4334,145.67,145.64,3.4339]
[1728725790664,3.4337,145.66,145.62,6.83812558]
[1728725790866,3.4337,145.66,145.62,15.27812558]
[1728725795468,3.4337,145.66,145.62,11.84382558]
[1728725795663,3.4337,145.66,145.63,3.4342]
[1728725796073,8.44,145.67,145.62,11.84382558]
[1728725796370,3.4337,145.65,145.62,15.27802558]
[1728725796962,8.44,145.67,145.62,11.84382558]
[1728725797166,3.4336,145.66,145.63,3.4341]
[1728725814291,89.37142349,145.69,145.65,3.4335]
[1728725814494,85.93842349,145.69,145.65,3.4335]
[1728725814792,94.37842349,145.69,145.65,3.4335]
[1728725814991,3.4332,145.68,145.64,3.4339]
[1728725815487,94.37842349,145.69,145.64,3.4339]
[1728725815691,3.4333,145.67,145.64,3.4339]
[1728725820093,11.8733,145.67,145.64,3.4339]
[1728725820787,3.4337,145.66,145.63,3.4341]
[1728725821993,3.4337,145.66,145.62,6.83812558]
[1728725822391,8.44,145.65,145.61,0.12502]
[1728725822696,8.44,145.64,145.61,3.55962]
[1728725822993,11.8741,145.64,145.61,3.55962]
[1728725824091,11.8741,145.64,145.61,0.12502]
[1728725824289,3.4344,145.63,145.61,0.12502]
[1728725824690,11.874,145.64,145.61,3.55962]
[1728725830398,3.434,145.64,145.61,3.55962]
[1728725835898,11.874,145.64,145.61,3.55962]
[1728725847304,8.44,145.64,145.61,0.12502]
[1728725847504,11.8738,145.65,145.62,3.4344]
[1728725847703,1.3276,145.67,145.62,3.4344]
[1728725847704,2.7249,145.68,145.62,8.44]
[1728725848011,3.4334,145.67,145.64,3.4339]
[1728725854822,3.4334,145.67,145.62,8.44]
[1728725855016,3.4334,145.67,145.63,3.4341]
[1728725856621,8.44,145.68,145.63,3.4341]
[1728725856819,8.44,145.66,145.62,11.8743]
[1728725857828,3.4338,145.65,145.62,11.8743]
[1728725858127,3.4338,145.65,145.62,3.4343]
[1728725862929,11.874,145.64,145.61,3.55952]
[1728725873138,8.44,145.64,145.61,0.12502]
[1728725873340,3.4342,145.63,145.61,0.12502]
[1728725880444,8.44,145.63,145.61,0.12502]
[1728725880645,11.8744,145.62,145.61,0.12502]
[1728725885053,3.4344,145.62,145.61,0.12502]
[1728725885651,8.44,145.65,145.61,0.12502]
[1728725885849,3.434,145.64,145.61,0.12502]
[1728725886049,8.44,145.65,145.61,0.12502]
[1728725887255,3.434,145.64,145.61,3.55962]
[1728725887451,8.44,145.65,145.61,0.12502]
[1728725888449,3.4342,145.63,145.61,0.12502]
[1728725889255,8.44,145.65,145.61,0.12502]
[1728725889454,3.434,145.64,145.61,0.12502]
[1728725890349,3.434,145.64,145.61,3.55962]
[1728725891150,11.874,145.64,145.61,3.55962]
[1728725896761,8.44,145.64,145.61,0.12502]
[1728725897063,3.4342,145.63,145.61,0.12502]
[1728725933597,3.434,145.64,145.61,3.55962]
[1728725940709,11.874,145.64,145.61,3.55962]
[1728725942113,8.44,145.64,145.61,0.12502]
[1728725942303,3.4342,145.63,145.61,0.12502]
[1728725971924,11.1953,145.66,145.61,0.12502]
[1728725972129,3.4344,145.62,145.61,0.12502]
[1728725994058,3.4343,145.63,145.61,0.12502]
[1728726012382,8.44,145.64,145.61,0.12502]
[1728726012681,3.4344,145.62,145.61,0.12502]
[1728726026489,84.24019786,145.63,145.61,0.12502]
[1728726026688,87.67439786,145.63,145.61,0.12502]
[1728726038003,3.4344,145.62,145.61,0.12502]
[1728726043200,11.8744,145.62,145.61,0.12502]
[1728726051209,3.4344,145.62,145.61,0.12502]
[1728726062812,92.68019786,145.63,145.61,0.12502]
[1728726063117,96.11449786,145.63,145.61,0.12502]
[1728726068722,3.434,145.64,145.61,3.55942]
[1728726068922,9.8454,145.67,145.62,8.44]
[1728726069420,3.4338,145.65,145.62,11.8744]
[1728726069815,93.9732404,145.66,145.62,11.8744]
[1728726070022,3.4339,145.64,145.62,8.44]
[1728726070218,85.5332404,145.66,145.63,8.44]
[1728726070616,88.9667404,145.66,145.63,11.874]
[1728726071520,85.5332404,145.66,145.64,8.44]
[1728726071722,85.5332404,145.66,145.65,3.4337]
[1728726077522,3.433,145.68,145.65,3.4337]
[1728726096452,8.44,145.69,145.63,3.50911225]
[1728726096655,3.4335,145.66,145.63,11.874]
[1728726101260,3.4336,145.66,145.63,8.44]
[1728726103457,3.4336,145.66,145.63,11.8742]
[1728726103657,3.4336,145.66,145.63,3.4342]
[1728726103850,3.4337,145.65,145.62,8.44]
[1728726104657,3.4337,145.65,145.62,11.8742]
[1728726114368,3.4336,145.66,145.63,8.44]
[1728726114568,3.4336,145.66,145.63,11.8741]
[1728726121275,3.4336,145.66,145.63,3.4341]
[1728726125076,3.4336,145.66,145.63,11.8741]
[1728726126177,8.44,145.68,145.63,11.8741]
[1728726126178,3.4334,145.67,145.63,11.8741]
[1728726129085,3.4335,145.66,145.63,11.8741]
[1728726129783,3.4335,145.66,145.63,3.4341]
[1728726133275,3.4337,145.65,145.62,3.4343]
[1728726143491,8.44,145.67,145.62,8.44]
[1728726143689,3.4335,145.66,145.63,3.4341]
[1728726151299,3.4333,145.67,145.64,3.4339]
[1728726151500,3.4333,145.67,145.62,8.44]
[1728726152701,3.4333,145.67,145.63,3.434]
[1728726160305,8.44,145.68,145.63,3.434]
[1728726160506,2.7632,145.71,145.63,3.434]
[1728726160507,3.4336,145.66,145.63,3.434]
[1728726181646,3.4336,145.66,145.63,11.874]
[1728726187746,3.4336,145.66,145.63,3.434]
[1728726193750,3.4333,145.67,145.63,3.434]
[1728726194257,11.8731,145.68,145.64,3.4339]
[1728726194846,11.8731,145.68,145.65,3.4336]
[1728726195357,8.44,145.7,145.64,8.44]
[1728726195552,3.4328,145.69,145.66,3.4334]
[1728726195752,3.4328,145.69,145.66,11.8734]
[1728726195952,8.44,145.7,145.66,8.44]
[1728726196148,3.4327,145.7,145.67,11.873]
[1728726196556,75.07604113,145.71,145.67,11.873]
[1728726196862,78.50844113,145.71,145.68,3.433]
[1728726199556,78.50844113,145.71,145.67,8.44]
[1728726199756,78.50844113,145.71,145.67,11.8731]
[1728726200650,75.07604113,145.71,145.68,8.44]
[1728726200853,0.12502,145.73,145.71,3.4321]
[1728726201053,0.12502,145.73,145.69,8.44]
[1728726202058,0.12502,145.73,145.7,3.4325]
[1728726202268,8.56502,145.73,145.7,3.4325]
[1728726203359,11.99692,145.73,145.7,3.4325]
[1728726214469,11.99692,145.73,145.69,11.8727]
[1728726216672,3.55692,145.73,145.69,11.8727]
[1728726263314,3.55692,145.73,145.7,3.4325]
[1728726273413,0.12502,145.73,145.68,8.44]
[1728726273617,3.4321,145.72,145.69,3.4327]
[1728726279920,3.4321,145.72,145.69,11.8727]
[1728726294929,0.12502,145.73,145.7,8.44]
[1728726295131,0.12502,145.73,145.7,11.8723]
[1728726295328,0.12502,145.73,145.72,8.44]
[1728726296333,0.12502,145.73,145.72,11.872]
[1728726297331,0.12502,145.73,145.72,8.44]
[1728726300934,0.12502,145.73,145.72,11.872]
[1728726303743,0.12502,145.73,145.72,8.44]
[1728726314345,0.12502,145.73,145.72,11.872]
[1728726315653,8.44,145.8,145.72,8.44]
[1728726315845,3.4308,145.78,145.75,8.44]
[1728726316249,8.44,145.8,145.75,8.44]
[1728726316549,3.4309,145.77,145.75,8.44]
[1728726323862,3.4309,145.77,145.74,11.8714]
[1728726329772,0.12502,145.79,145.74,11.8714]
[1728726329962,3.4308,145.78,145.74,11.8714]
[1728726334167,3.4308,145.78,145.76,8.44]
[1728726335371,8.56502,145.79,145.74,11.8714]
[1728726335563,3.431,145.77,145.74,11.8716]
[1728726356396,3.4311,145.76,145.74,8.44]
[1728726357489,3.4311,145.76,145.73,11.8718]
[1728726357794,3.4311,145.76,145.73,8.44]
[1728726360694,3.4308,145.78,145.75,8.44]
[1728726361794,3.4309,145.77,145.75,8.44]
[1728726361993,3.4309,145.77,145.74,8.44]
[1728726372401,0.12502,145.79,145.74,11.8714]
[1728726373008,3.4308,145.78,145.74,11.8714]
[1728726376207,0.12502,145.79,145.73,8.44]
[1728726376409,3.431,145.77,145.73,3.4317]
[1728726380709,8.56502,145.79,145.74,8.44]
[1728726381014,3.4308,145.78,145.74,11.8715]
[1728726383308,3.4309,145.77,145.74,11.8715]
[1728726391227,0.12502,145.79,145.76,3.4311]
[1728726391426,0.12502,145.79,145.76,11.8711]
[1728726392517,3.55552,145.79,145.76,11.8711]
[1728726393526,3.4308,145.78,145.75,3.4313]
[1728726395836,3.4308,145.78,145.76,8.44]
[1728726396223,3.55542,145.79,145.76,11.871]
[1728726396535,0.12502,145.79,145.76,11.871]
[1728726399532,0.12502,145.79,145.77,3.4309]
[1728726404033,3.55542,145.79,145.77,3.4309]
[1728726404338,3.55542,145.79,145.76,11.871]
[1728726405448,3.55542,145.79,145.75,3.4312]
[1728726405449,11.8708,145.78,145.75,3.4312]
[1728726405733,11.8708,145.78,145.72,1.3459]
[1728726405734,8.44,145.77,145.72,1.3459]
[1728726405940,8.44,145.77,145.72,9.7859]
[1728726406935,3.4312,145.76,145.73,8.44]
[1728726422951,3.4312,145.76,145.74,8.44]
[1728726427649,0.12502,145.79,145.74,8.44]
[1728726427848,8.56502,145.79,145.74,11.8715]
[1728726428548,3.4308,145.78,145.74,11.8715]
[1728726432457,3.431,145.77,145.74,8.44]
[1728726436464,3.431,145.77,145.74,11.8715]
[1728726438661,3.4312,145.76,145.72,4.7778]
[1728726438856,3.4312,145.76,145.73,8.44]
[1728726439661,3.4312,145.76,145.73,11.8718]
[1728726441669,8.44,145.78,145.73,11.8718]
[1728726441862,3.431,145.77,145.73,11.8718]
[1728726442063,3.431,145.77,145.74,8.44]
[1728726442467,3.431,145.77,145.73,3.4318]
[1728726442668,3.431,145.77,145.73,11.8718]
[1728726442870,8.44,145.77,145.71,53.97537647]
[1728726443166,8.44,145.75,145.71,53.97537647]
[1728726443775,3.4316,145.74,145.71,53.97537647]
[1728726446771,3.4318,145.73,145.71,53.97537647]
[1728726448072,3.4324,145.71,145.68,11.873]
[1728726448477,8.44,145.73,145.67,8.56502]
[1728726449368,3.4325,145.71,145.68,8.44]
[1728726449967,8.44,145.73,145.68,8.44]
[1728726450167,3.4322,145.72,145.68,11.8728]
[1728726450365,8.44,145.73,145.68,11.8728]
[1728726451468,3.4323,145.71,145.68,11.8728]
[1728726456380,3.4323,145.71,145.68,3.4328]
[1728726457584,3.4321,145.72,145.7,8.44]
[1728726458975,3.4321,145.72,145.69,11.8726]
[1728726479611,68.23610609,145.74,145.71,8.44]
[1728726479909,68.23610609,145.74,145.71,11.84722681]
[1728726480118,68.23610609,145.74,145.72,8.44]